bitfinex-derivatives/quotes_SOLF0:USTF0_20250221
["timestamp","ask_amount","ask_price","bid_price","bid_amount"]
[1740105311411,5.7555,173.69,173.67,0.0408217]
[1740105311613,10.31786719,173.68,173.67,0.0408217]
[1740105312210,10.31786719,173.69,173.67,0.0408217]
[1740105312608,16.07346719,173.69,173.67,0.0408217]
[1740105312911,10.31786719,173.69,173.67,0.0408217]
[1740105313214,10.31786719,173.69,173.6,5.7584]
[1740105313514,10.31786719,173.63,173.57,12.06406719]
[1740105313702,10.31786719,173.63,173.6,5.7582]
[1740105314010,10.31786719,173.63,173.57,12.06406719]
[1740105314407,0.04382164,173.62,173.58,0.0422521]
[1740105315010,0.04382164,173.62,173.6,5.7582]
[1740105315708,0.04382164,173.62,173.58,0.0422521]
[1740105315914,0.04382164,173.62,173.61,5.7581]
[1740105316411,10.31786719,173.69,173.61,10.31786719]
[1740105316614,10.31786719,173.69,173.67,5.7559]
[1740105316811,10.31786719,173.69,173.63,10.31786719]
[1740105317213,10.31786719,173.69,173.65,5.7567]
[1740105317613,10.31786719,173.67,173.65,0.04263451]
[1740105318016,5.7565,173.66,173.65,0.04263451]
[1740105318614,5.7574,173.64,173.57,10.31786719]
[1740105318819,10.31786719,173.62,173.57,10.31786719]
[1740105319416,10.31786719,173.62,173.58,5.7588]
[1740105319714,10.35805735,173.62,173.58,5.79873455]
[1740105321919,10.35805735,173.62,173.58,0.03993455]
[1740105322121,10.31786719,173.6,173.58,0.03993455]
[1740105322816,16.07656719,173.6,173.58,0.03993455]
[1740105323917,10.31786719,173.6,173.58,0.03993455]
[1740105324916,16.07636719,173.6,173.58,0.03993455]
[1740105325620,10.31786719,173.6,173.58,0.03993455]
[1740105328819,10.31786719,173.61,173.6,5.7584]
[1740105329020,10.31786719,173.61,173.58,0.03993455]
[1740105329719,0.04019016,173.62,173.58,0.03993455]
[1740105330425,0.04019016,173.62,173.59,5.7587]
[1740105331020,0.04019016,173.62,173.58,0.03993455]
[1740105332521,10.31786719,173.61,173.58,0.03993455]
[1740105332726,10.31786719,173.61,173.58,5.79903455]
[1740105338528,0.04019016,173.62,173.61,5.7581]
[1740105338931,0.04019016,173.62,173.61,16.07596719]
[1740105339127,203.31786719,173.69,173.65,5.7566]
[1740105339328,10.31786719,173.7,173.63,10.31786719]
[1740105339532,10.31786719,173.72,173.65,10.31786719]
[1740105339732,10.31786719,173.72,173.67,5.7559]
[1740105339930,10.31786719,173.72,173.65,10.31786719]
[1740105340123,0.03887765,173.7,173.69,5.7555]
[1740105340323,10.31786719,173.74,173.69,5.7555]
[1740105340526,0.04410271,173.71,173.69,5.7555]
[1740105340723,0.04410271,173.71,173.7,5.7552]
[1740105341729,2.71e-06,173.71,173.7,5.7552]
[1740105345735,2.71e-06,173.71,173.69,16.07326719]
[1740105346635,2.71e-06,173.71,173.7,5.7552]
[1740105348526,2.71e-06,173.71,173.7,16.07306719]
[1740105349731,10.31786719,173.8,173.7,10.31786719]
[1740105349929,3.6749,173.84,173.77,10.31786719]
[1740105350235,10.31786719,173.83,173.77,10.31786719]
[1740105350638,10.31786719,173.83,173.78,5.7525]
[1740105350836,10.31786719,173.83,173.77,10.31786719]
[1740105351037,0.04421272,173.82,173.79,0.03849052]
[1740105351829,5.79541272,173.82,173.79,0.03849052]
[1740105352436,5.7518,173.8,173.79,0.03849052]
[1740105354132,10.31786719,173.81,173.79,0.03849052]
[1740105354637,0.04421272,173.82,173.79,0.03849052]
[1740105357739,0.04421272,173.82,173.8,5.7516]
[1740105357938,0.04421272,173.82,173.79,0.03849052]
[1740105358944,5.79561272,173.82,173.79,0.03849052]
[1740105359140,0.04421272,173.82,173.79,0.03849052]
[1740105359642,5.7516,173.81,173.79,0.03849052]
[1740105360043,0.04421272,173.82,173.79,0.03849052]
[1740105360244,5.7518,173.8,173.79,0.03849052]
[1740105360544,0.04421272,173.82,173.79,0.03849052]
[1740105362846,0.04421272,173.82,173.81,5.7515]
[1740105363045,0.04421272,173.82,173.79,0.03849052]
[1740105364747,16.093263,173.92,173.81,16.093263]
[1740105365445,5.7486,173.9,173.84,5.7503]
[1740105365839,16.093263,173.92,173.84,5.7503]
[1740105366047,16.093263,173.92,173.85,0.0363121]
[1740105366048,5.7493,173.88,173.85,0.0363121]
[1740105366748,0.04212179,173.89,173.85,0.0363121]
[1740105366951,5.79132179,173.89,173.85,0.0363121]
[1740105368045,0.04212179,173.89,173.85,0.0363121]
[1740105369543,0.04212179,173.89,173.87,5.7495]
[1740105370149,0.04212179,173.89,173.85,0.0363121]
[1740105370351,0.04212179,173.89,173.88,5.7492]
[1740105370745,2.179e-05,173.89,173.88,5.7492]
[1740105374654,2.179e-05,173.89,173.88,16.03018677]
[1740105375249,2.179e-05,173.89,173.88,10.28098677]
[1740105376745,2.179e-05,173.89,173.88,16.03018677]
[1740105378147,10.28098677,173.99,173.92,5.7478]
[1740105378341,5.746,173.98,173.94,10.28098677]
[1740105379241,5.78410861,173.98,173.94,10.31996488]
[1740105379443,0.03810861,173.98,173.94,10.31996488]
[1740105380550,0.03810861,173.98,173.94,0.03897811]
[1740105380752,5.7462,173.97,173.94,0.03897811]
[1740105380953,0.03810861,173.98,173.94,0.03897811]
[1740105381352,5.7463,173.97,173.94,0.03897811]
[1740105382144,16.02728677,173.97,173.94,0.03897811]
[1740105382555,5.7466,173.96,173.94,0.03897811]
[1740105383052,5.7469,173.95,173.94,0.03897811]
[1740105383453,16.02788677,173.95,173.94,0.03897811]
[1740105383756,5.7478,173.93,173.9,10.28098677]
[1740105384354,5.7478,173.93,173.89,5.7488]
[1740105384559,10.28098677,173.91,173.86,10.28098677]
[1740105384753,10.28098677,173.91,173.84,10.28098677]
[1740105384954,5.78627169,173.9,173.87,0.03648185]
[1740105385155,0.03767169,173.9,173.87,0.03648185]
[1740105385557,0.03767169,173.9,173.87,5.78598185]
[1740105386258,0.03767169,173.9,173.89,5.7489]
[1740105386553,0.03767169,173.9,173.87,0.03648185]
[1740105386855,0.03767169,173.9,173.88,5.749]
[1740105387448,0.03767169,173.9,173.89,5.7489]
[1740105389057,193.0,174.06,173.89,16.07297251]
[1740105389256,5.4554,174.01,173.92,16.07297251]
[1740105389656,11.2006,174.01,173.94,5.747]
[1740105390260,0.04234585,173.99,173.96,0.03667865]
[1740105391661,5.7459,173.98,173.96,0.03667865]
[1740105391862,0.04234585,173.99,173.96,0.03667865]
[1740105392061,5.78794585,173.99,173.96,0.03667865]
[1740105392362,0.04234585,173.99,173.96,0.03667865]
[1740105392963,5.7462,173.98,173.96,0.03667865]
[1740105393161,0.04234585,173.99,173.96,0.03667865]
[1740105393659,5.7462,173.97,173.96,0.03667865]
[1740105393865,16.07297251,173.98,173.89,16.07297251]
[1740105394160,5.7478,173.93,173.88,5.7491]
[1740105394358,16.07297251,173.98,173.86,16.07297251]
[1740105394963,0.03853684,173.94,173.9,0.03667394]
[1740105395159,5.7483,173.91,173.9,0.03667394]
[1740105395563,3.70693684,173.94,173.9,0.03667394]
[1740105396355,1.83183684,173.94,173.9,0.03667394]
[1740105396560,0.03853684,173.94,173.91,5.7481]
[1740105397868,0.03853684,173.94,173.93,5.7475]
[1740105401968,0.03853684,173.94,173.92,16.07297251]
[1740105402167,0.03853684,173.94,173.9,0.03667394]
[1740105404066,0.03853684,173.94,173.91,5.7479]
[1740105404266,0.03853684,173.94,173.9,0.03667394]
[1740105405268,0.03853684,173.94,173.93,5.7475]
[1740105411280,0.03853684,173.94,173.9,0.03667394]
[1740105411481,5.78593684,173.94,173.9,0.03667394]
[1740105412280,0.03853684,173.94,173.9,0.03667394]
[1740105413177,0.03853684,173.94,173.93,5.7475]
[1740105415080,0.03853684,173.94,173.9,0.03667394]
[1740105415275,0.03853684,173.94,173.92,5.7478]
[1740105415985,0.03853684,173.94,173.93,5.7475]
[1740105417885,3.684e-05,173.94,173.93,5.7475]
[1740105422092,3.684e-05,173.94,173.92,21.82077251]
[1740105426589,3.684e-05,173.94,173.93,10.27786186]
[1740105428593,3.684e-05,173.94,173.93,16.02536186]
[1740105440697,5.7443,174.03,173.98,5.7457]
[1740105441090,10.27786186,174.04,173.97,10.27786186]
[1740105441297,16.02186186,174.04,173.99,5.7453]
[1740105441792,0.03997477,174.03,174.0,0.04342419]
[1740105441994,0.03997477,174.03,174.01,10.27786186]
[1740105442401,0.03997477,174.03,174.02,5.7446]
[1740105443301,0.03997477,174.03,174.01,10.27786186]
[1740105444201,0.03997477,174.03,174.0,0.04342419]
[1740105444699,5.78447477,174.03,174.0,0.04342419]
[1740105445498,10.27786186,174.02,173.95,10.27786186]
[1740105446205,5.7455,174.0,173.95,10.27786186]
[1740105446504,10.27786186,174.02,173.95,10.27786186]
[1740105446706,0.04186411,173.99,173.96,0.03978721]
[1740105446902,5.7462,173.97,173.96,0.03978721]
[1740105448605,5.7472,173.95,173.91,10.27786186]
[1740105449206,10.27786186,173.96,173.91,10.27786186]
[1740105449709,0.03670728,173.95,173.92,0.03635432]
[1740105452916,0.03670728,173.95,173.92,5.78415432]
[1740105453116,0.03670728,173.95,173.93,10.27786186]
[1740105453917,0.03670728,173.95,173.92,0.03635432]
[1740105454718,0.03670728,173.95,173.93,5.7475]
[1740105455015,0.03670728,173.95,173.93,10.27786186]
[1740105455712,7.28e-06,173.95,173.94,5.7472]
[1740105455917,10.27786186,174.04,173.93,10.27786186]
[1740105456119,10.27786186,174.04,173.99,10.27786186]
[1740105456312,10.27786186,174.04,173.99,16.02336186]
[1740105457112,0.03692328,174.03,174.0,0.04220255]
[1740105459422,10.27786186,174.02,174.0,0.04220255]
[1740105459715,5.7462,173.98,173.95,10.27786186]
[1740105459913,10.27786186,174.0,173.93,10.27786186]
[1740105460114,1.7827,174.01,173.91,10.27786186]
[1740105460115,10.27786186,173.98,173.91,10.27786186]
[1740105460518,5.7469,173.96,173.91,16.02576186]
[1740105460919,5.7469,173.96,173.92,5.78696635]
[1740105460920,0.0382057,173.95,173.92,5.78696635]
[1740105461624,0.0382057,173.95,173.93,5.7475]
[1740105462219,0.0382057,173.95,173.94,5.7472]
[1740105465529,0.0382057,173.95,173.93,5.7475]
[1740105466127,0.0382057,173.95,173.92,0.03916635]
[1740105466325,0.0382057,173.95,173.92,5.78696635]
[1740105466626,0.0382057,173.95,173.92,0.03916635]
[1740105467022,0.0382057,173.95,173.92,5.78696635]
[1740105467627,5.7852057,173.95,173.92,0.03916635]
[1740105468534,0.0382057,173.95,173.92,0.03916635]
[1740105470433,0.0382057,173.95,173.93,5.7475]
[1740105471038,0.0382057,173.95,173.94,5.7472]
[1740105472636,0.0382057,173.95,173.93,5.7475]
[1740105473736,0.0382057,173.95,173.92,5.78696635]
[1740105474639,0.0382057,173.95,173.92,0.03916635]
[1740105474841,0.0382057,173.95,173.93,5.7475]
[1740105475940,0.0382057,173.95,173.94,5.7472]
[1740105477732,16.06102544,174.04,173.98,5.7457]
[1740105478145,5.7445,174.03,173.98,5.7457]
[1740105478737,0.03893507,174.02,173.98,5.7457]
[1740105478943,0.03893507,174.02,173.99,0.03855214]
[1740105479647,5.78353507,174.02,173.99,0.03855214]
[1740105480342,0.03893507,174.02,173.99,0.03855214]
[1740105483443,5.78363507,174.02,173.99,0.03855214]
[1740105484150,0.03893507,174.02,173.99,0.03855214]
[1740105484352,0.03893507,174.02,173.99,10.31198939]
[1740105487653,0.03893507,174.02,174.0,5.7449]
[1740105487853,0.03893507,174.02,173.99,10.31198939]
[1740105488047,0.03893507,174.02,174.0,5.7449]
[1740105488451,0.03893507,174.02,173.99,10.31198939]
[1740105488951,0.03893507,174.02,174.01,16.01833725]
[1740105491651,0.03893507,174.02,174.01,10.27343725]
[1740105492857,0.03893507,174.02,174.01,16.01833725]
[1740105494958,0.03893507,174.02,174.01,10.27343725]
[1740105495154,0.03893507,174.02,174.0,5.7449]
[1740105495358,0.03893507,174.02,173.99,10.31198939]
[1740105496060,0.03893507,174.02,174.01,5.7449]
[1740105496655,0.03893507,174.02,174.01,16.01833725]
[1740105496855,3.5894,174.08,174.05,5.7436]
[1740105497353,10.27343725,174.09,174.05,5.7436]
[1740105497561,10.27343725,174.11,174.08,5.7424]
[1740105497958,10.31505791,174.11,174.08,5.78660641]
[1740105498157,10.31505791,174.11,174.08,0.04420641]
[1740105498758,0.04162066,174.11,174.09,5.7422]
[1740105500459,0.04162066,174.11,174.08,0.04420641]
[1740105500759,0.04162066,174.11,174.09,10.27343725]
[1740105501259,0.04162066,174.11,174.09,16.01563725]
[1740105501659,0.04162066,174.11,174.09,10.27343725]
[1740105507368,0.04162066,174.11,174.08,0.04420641]
[1740105507863,5.7419,174.1,174.08,0.04420641]
[1740105508166,10.31505791,174.11,174.08,0.04420641]
[1740105508358,10.27343725,174.09,174.08,0.04420641]
[1740105508557,16.01573725,174.09,174.08,0.04420641]
[1740105508758,10.27343725,174.09,174.01,10.27343725]
[1740105508962,10.27343725,174.07,174.01,10.27343725]
[1740105509159,3.524,174.11,174.0,10.27343725]
[1740105509365,5.7443,174.03,173.98,10.27343725]
[1740105510065,0.03732483,174.02,173.99,0.04253579]
[1740105513968,0.03732483,174.02,173.99,5.78803579]
[1740105514466,0.03732483,174.02,173.99,0.04253579]
[1740105515767,5.78192483,174.02,173.99,0.04253579]
[1740105515969,10.27343725,174.01,173.99,0.04253579]
[1740105517167,10.27343725,174.01,173.92,10.27343725]
[1740105517368,10.27343725,173.98,173.92,10.27343725]
[1740105517870,5.7463,173.97,173.93,5.7472]
[1740105518372,5.78700078,173.97,173.93,5.78653201]
[1740105518569,0.04070078,173.97,173.93,5.78653201]
[1740105519266,10.27343725,173.96,173.93,0.03933201]
[1740105519472,5.7469,173.95,173.93,0.03933201]
[1740105520572,10.27343725,173.96,173.93,0.03933201]
[1740105520772,16.02003725,173.96,173.93,0.03933201]
[1740105521473,5.747,173.95,173.93,0.03933201]
[1740105521974,10.27343725,173.96,173.93,0.03933201]
[1740105521975,16.02013725,173.96,173.93,0.03933201]
[1740105522469,10.27343725,173.96,173.93,0.03933201]
[1740105523473,5.747,173.95,173.93,0.03933201]
[1740105526281,5.7472,173.94,173.93,0.03933201]
[1740105527379,16.02063725,173.94,173.93,0.03933201]
[1740105527584,10.27343725,173.94,173.86,70.34307645]
[1740105528080,10.27343725,173.94,173.88,10.27343725]
[1740105528779,0.04282557,173.93,173.9,5.7483]
[1740105528973,0.04282557,173.93,173.9,10.27343725]
[1740105529172,0.04282557,173.93,173.92,10.27343725]
[1740105529473,12.04983725,174.0,173.92,16.02133725]
[1740105529676,12.04983725,174.0,173.95,10.27343725]
[1740105529878,3.6208,174.01,173.95,10.27343725]
[1740105530078,10.27343725,174.04,173.97,10.27343725]
[1740105530482,10.27343725,174.02,173.95,10.27343725]
[1740105530780,10.27343725,174.0,173.99,0.04014518]
[1740105530981,5.7461,173.98,173.93,16.02093725]
[1740105531177,10.27343725,174.0,173.93,16.02093725]
[1740105531382,5.7456,173.99,173.94,5.7472]
[1740105531681,10.27343725,174.0,173.94,5.7472]
[1740105531881,10.27343725,173.98,173.91,10.27343725]
[1740105532079,5.7462,173.97,173.95,0.0386593]
[1740105532985,5.7466,173.96,173.95,0.0386593]
[1740105533481,12.10943725,173.98,173.95,0.0386593]
[1740105533683,5.7463,173.97,173.95,0.0386593]
[1740105533879,10.27343725,173.98,173.95,0.0386593]
[1740105534786,5.7465,173.97,173.95,0.0386593]
[1740105536389,10.27343725,173.98,173.95,0.0386593]
[1740105536885,5.78216654,173.99,173.95,0.0386593]
[1740105537186,0.03656654,173.99,173.95,0.0386593]
[1740105537587,10.27343725,173.98,173.95,0.0386593]
[1740105537789,16.01953725,173.98,173.95,0.0386593]
[1740105538083,10.27343725,173.96,173.95,0.0386593]
[1740105538486,16.01943725,173.98,173.95,0.0386593]
[1740105540783,5.7463,173.97,173.95,0.0386593]
[1740105540984,10.27343725,173.98,173.95,0.0386593]
[1740105541493,16.01943725,173.98,173.95,0.0386593]
[1740105541883,0.03656654,173.99,173.95,0.0386593]
[1740105542090,0.03656654,173.99,173.96,10.27343725]
[1740105542492,0.03656654,173.99,173.98,16.01933725]
[1740105542689,0.03656654,173.99,173.98,5.7459]
[1740105542996,10.31000379,173.99,173.95,0.0386593]
[1740105543391,0.03656654,173.99,173.96,10.27343725]
[1740105543689,0.03656654,173.99,173.95,0.0386593]
[1740105545585,5.78216654,173.99,173.95,0.0386593]
[1740105545985,0.03656654,173.99,173.95,0.0386593]
[1740105546188,5.7462,173.98,173.95,0.0386593]
[1740105546994,10.31000379,173.99,173.95,0.0386593]
[1740105547199,0.03656654,173.99,173.95,0.0386593]
[1740105547901,0.03656654,173.99,173.96,10.27343725]
[1740105548595,0.03656654,173.99,173.95,0.0386593]
[1740105549499,10.31000379,173.99,173.95,0.0386593]
[1740105550091,5.746,173.98,173.95,0.0386593]
[1740105550293,0.03656654,173.99,173.96,10.27343725]
[1740105550490,10.27343725,174.08,173.98,10.27343725]
[1740105550696,10.27343725,174.08,174.01,10.27343725]
[1740105551497,12.14333725,174.06,173.86,60.01669053]
[1740105551696,10.27343725,174.04,174.02,0.04394625]
[1740105551899,16.01763725,174.04,173.98,16.01923725]
[1740105552100,16.01763725,174.04,174.01,0.04420538]
[1740105552597,10.27343725,174.04,174.01,0.04420538]
[1740105552800,16.01803725,174.02,174.01,0.04420538]
[1740105553600,10.27343725,174.02,174.01,0.04420538]
[1740105556201,5.7443,174.03,174.01,0.04420538]
[1740105556602,10.27343725,174.02,174.01,0.04420538]
[1740105556798,16.01803725,174.02,174.01,0.04420538]
[1740105561406,5.7453,174.0,173.96,16.01973725]
[1740105562706,5.78839128,174.0,173.96,16.05693412]
[1740105565308,5.7456,173.99,173.96,16.05693412]
[1740105566112,5.7462,173.97,173.96,0.03719687]
[1740105568819,16.01943725,173.98,173.96,0.03719687]
[1740105573810,5.7462,173.97,173.96,0.03719687]
[1740105574015,10.27343725,173.98,173.96,0.03719687]
[1740105576520,16.01953725,173.98,173.96,0.03719687]
[1740105578222,5.7462,173.97,173.96,0.03719687]
[1740105581420,16.01943725,173.98,173.96,0.03719687]
[1740105584230,5.7462,173.97,173.96,0.03719687]
[1740105590127,16.01943725,173.98,173.96,0.03719687]
[1740105590620,10.27343725,173.98,173.96,0.03719687]
[1740105591322,16.01943725,173.98,173.96,0.03719687]
[1740105592823,10.27343725,173.98,173.96,0.03719687]
[1740105593328,16.01933725,173.98,173.96,0.03719687]
[1740105593521,10.27343725,173.98,173.96,0.03719687]
[1740105595229,10.27343725,173.98,173.96,5.78359687]
[1740105595826,10.27343725,173.98,173.96,0.03719687]
[1740105596226,10.31652853,174.0,173.96,0.03719687]
[1740105596624,10.31652853,174.0,173.96,5.78359687]
[1740105597427,10.27343725,173.98,173.86,42.73669053]
[1740105597630,10.27343725,173.9,173.86,42.73669053]
[1740105598030,16.02213725,173.9,173.86,42.73669053]
[1740105598624,16.06447053,173.9,173.86,42.77652593]
[1740105598825,10.27343725,173.88,173.86,0.0398354]
[1740105600229,0.04233328,173.9,173.87,10.27343725]
[1740105600425,10.27343725,173.96,173.89,10.27343725]
[1740105600728,10.27343725,173.96,173.91,10.27343725]
[1740105600928,1.7675,173.99,173.88,5.4907]
[1740105600929,10.27343725,173.94,173.88,5.4907]
[1740105601631,0.04312485,173.93,173.89,0.03939774]
[1740105602726,10.27343725,173.9,173.89,0.03939774]
[1740105609833,16.02193725,173.9,173.89,0.03939774]
[1740105611140,10.27343725,173.9,173.81,10.27343725]
[1740105611342,10.27343725,173.84,173.79,10.67159785]
[1740105611542,5.7512,173.82,173.79,6.1502606]
[1740105612037,10.27343725,173.84,173.79,6.1502606]
[1740105612242,0.03927042,173.82,173.79,6.19086666]
[1740105612740,10.31270767,173.82,173.79,0.04060606]
[1740105614542,10.27343725,173.8,173.79,0.04060606]
[1740105614739,16.02523725,173.8,173.79,0.04060606]
[1740105616844,10.27343725,173.8,173.79,0.04060606]
[1740105619243,10.27343725,173.8,173.79,5.79280606]
[1740105621545,0.03927042,173.82,173.81,5.7515]
[1740105621951,0.03927042,173.82,173.79,10.31404331]
[1740105622151,0.03927042,173.82,173.79,16.06594331]
[1740105622351,0.03927042,173.82,173.79,10.31404331]
[1740105622851,0.03927042,173.82,173.8,5.7516]
[1740105623053,0.03927042,173.82,173.79,10.31404331]
[1740105625453,0.03927042,173.82,173.8,5.7518]
[1740105625955,0.03927042,173.82,173.79,10.31404331]
[1740105626254,10.27343725,173.81,173.79,0.04060606]
[1740105626757,5.7518,173.8,173.79,0.04060606]
[1740105627649,12.09343725,173.81,173.71,10.27343725]
[1740105627848,10.27343725,173.77,173.72,5.7543]
[1740105628254,10.27343725,173.77,173.73,5.7539]
[1740105628454,10.27343725,173.77,173.71,10.27343725]
[1740105628852,0.04398542,173.76,173.73,5.7541]
[1740105630853,0.04398542,173.76,173.74,5.7538]
[1740105631054,0.04398542,173.76,173.72,0.03898373]
[1740105632160,0.04398542,173.76,173.73,5.7541]
[1740105634462,5.7539,173.74,173.72,0.03898373]
[1740105634663,0.04398542,173.76,173.72,0.03898373]
[1740105634664,10.27343725,173.75,173.72,0.03898373]
[1740105635058,10.27343725,173.73,173.72,0.03898373]
[1740105635563,16.02763725,173.73,173.72,0.03898373]
[1740105636668,10.27343725,173.73,173.72,0.03898373]
[1740105637461,16.02763725,173.73,173.72,0.03898373]
[1740105639766,10.27343725,173.73,173.65,10.27343725]
[1740105639965,5.7548,173.72,173.65,10.27343725]
[1740105640165,10.27343725,173.7,173.65,10.27343725]
[1740105641064,0.03797007,173.69,173.65,10.27343725]
[1740105641774,0.03797007,173.69,173.67,5.7559]
[1740105642366,0.03797007,173.69,173.68,5.7558]
[1740105642670,0.03797007,173.69,173.65,10.27343725]
[1740105642870,0.03797007,173.69,173.66,5.7564]
[1740105644873,0.03797007,173.69,173.67,5.7559]
[1740105645073,0.03797007,173.69,173.65,10.27343725]
[1740105645774,0.03797007,173.69,173.66,5.7562]
[1740105646073,0.03797007,173.69,173.65,10.27343725]
[1740105646371,0.03797007,173.69,173.66,5.7564]
[1740105646774,0.03797007,173.69,173.67,5.7561]
[1740105646966,0.03797007,173.69,173.65,10.27343725]
[1740105648475,0.03797007,173.69,173.65,16.03003725]
[1740105648975,5.79347007,173.69,173.65,16.03003725]
[1740105649177,0.03797007,173.69,173.65,16.03003725]
[1740105650474,0.03797007,173.69,173.65,5.7566]
[1740105653782,5.79367007,173.69,173.64,5.7571]
[1740105653981,10.27343725,173.68,173.61,15.49443725]
[1740105654383,5.7567,173.66,173.62,5.7575]
[1740105656380,5.7574,173.64,173.59,5.7586]
[1740105656586,16.03083725,173.64,173.58,10.27343725]
[1740105656880,0.04227837,173.63,173.58,10.27343725]
[1740105658587,0.04227837,173.63,173.59,5.7586]
[1740105659989,0.04227837,173.63,173.58,10.27343725]
[1740105660288,10.27343725,173.62,173.53,3.6162]
[1740105660586,10.27343725,173.6,173.54,10.27343725]
[1740105660788,0.04208458,173.59,173.53,13.88963725]
[1740105661583,0.04208458,173.59,173.56,5.7596]
[1740105661784,0.04208458,173.59,173.53,13.88963725]
[1740105661984,10.31552183,173.59,173.53,13.88963725]
[1740105662291,10.31552183,173.59,173.55,5.7601]
[1740105662689,10.31552183,173.59,173.53,13.88963725]
[1740105662993,10.31552183,173.59,173.55,5.7599]
[1740105663186,10.31552183,173.59,173.53,13.88963725]
[1740105663888,10.27343725,173.55,173.42,7.83757673]
[1740105664093,10.27343725,173.53,173.46,10.27343725]
[1740105664392,0.04311805,173.5,173.46,10.27343725]
[1740105664790,0.04311805,173.5,173.47,5.7627]
[1740105665193,0.04311805,173.5,173.44,10.27343725]
[1740105665493,0.04311805,173.5,173.45,5.7632]
[1740105665695,0.04311805,173.5,173.44,10.27343725]
[1740105665895,0.04311805,173.5,173.47,5.7627]
[1740105667695,0.04311805,173.5,173.46,5.7631]
[1740105668596,0.04311805,173.5,173.47,5.7627]
[1740105669095,0.04311805,173.5,173.48,5.7624]
[1740105669293,0.04311805,173.5,173.44,10.27343725]
[1740105670490,10.27343725,173.49,173.44,10.27343725]
[1740105670691,16.03573725,173.49,173.44,5.7638]
[1740105671095,10.27343725,173.49,173.43,5.3932]
[1740105671391,10.27343725,173.47,173.44,5.7637]
[1740105673598,10.27343725,173.47,173.45,5.7633]
[1740105675001,10.27343725,173.47,173.42,10.27343725]
[1740105675389,0.04396781,173.46,173.42,10.27343725]
[1740105676199,0.04396781,173.46,173.45,5.7632]
[1740105678600,6.781e-05,173.46,173.45,5.7632]
[1740105682100,6.781e-05,173.46,173.45,9.3625]
[1740105684993,6.781e-05,173.46,173.45,5.7632]
[1740105687600,6.781e-05,173.46,173.44,0.0392911]
[1740105688498,6.781e-05,173.46,173.44,5.8030911]
[1740105689503,6.781e-05,173.46,173.44,0.0392911]
[1740105690703,10.27343725,173.45,173.44,0.0392911]
[1740105695107,10.27343725,173.45,173.44,5.8030911]
[1740105698008,6.781e-05,173.46,173.45,5.7635]
[1740105701508,6.781e-05,173.46,173.44,0.0392911]
[1740105701816,6.781e-05,173.46,173.44,5.8028911]
[1740105702014,10.27343725,173.45,173.44,0.0392911]
[1740105704510,16.03693725,173.45,173.44,0.0392911]
[1740105705619,5.7643,173.43,173.39,5.7653]
[1740105705817,10.27343725,173.42,173.36,58.07446301]
[1740105706019,10.27343725,173.42,173.36,10.27343725]
[1740105706217,10.27343725,173.4,173.34,10.27343725]
[1740105706812,0.0408147,173.39,173.34,10.27343725]
[1740105707018,10.27343725,173.38,173.33,3.5237]
[1740105707217,10.27343725,173.38,173.34,5.7669]
[1740105707419,10.27343725,173.38,173.32,18.11101398]
[1740105707618,10.27343725,173.38,173.32,10.27343725]
[1740105707819,10.27343725,173.38,173.35,5.7667]
[1740105708218,10.27343725,173.38,173.32,10.27343725]
[1740105709622,10.27343725,173.38,173.35,5.7665]
[1740105710121,10.27343725,173.38,173.32,10.27343725]
[1740105710617,10.27343725,173.38,173.3,18.11101398]
[1740105710823,10.27343725,173.34,173.28,10.27343725]
[1740105711018,10.27343725,173.34,173.25,31.35030693]
[1740105711226,0.03728685,173.33,173.32,5.7675]
[1740105712220,0.03728685,173.33,173.25,31.35030693]
[1740105712427,10.27343725,173.32,173.26,10.27343725]
[1740105712824,10.27343725,173.32,173.31,5.7681]
[1740105713929,10.27343725,173.32,173.26,10.27343725]
[1740105714226,10.27343725,173.32,173.3,5.7684]
[1740105715028,0.03728685,173.33,173.32,5.7678]
[1740105715225,0.03728685,173.33,173.32,16.04123725]
[1740105716527,0.03728685,173.33,173.32,5.7678]
[1740105721126,0.03728685,173.33,173.31,5.768]
[1740105721527,0.03728685,173.33,173.3,10.27343725]
[1740105721723,0.03728685,173.33,173.32,5.7678]
[1740105723430,0.03728685,173.33,173.32,16.04123725]
[1740105723832,0.03728685,173.33,173.23,11.5411]
[1740105724032,0.03728685,173.33,173.28,10.27343725]
[1740105724232,10.27343725,173.34,173.28,10.27343725]
[1740105724432,0.04387222,173.32,173.28,10.27343725]
[1740105725838,0.04387222,173.32,173.22,9.2988]
[1740105726038,0.04387222,173.32,173.29,5.7687]
[1740105726240,0.04387222,173.32,173.28,10.27343725]
[1740105726738,0.04387222,173.32,173.3,5.7682]
[1740105727239,0.04387222,173.32,173.31,5.7681]
[1740105728740,0.04387222,173.32,173.28,10.27343725]
[1740105729741,0.04387222,173.32,173.29,5.7687]
[1740105730342,0.04387222,173.32,173.28,10.27343725]
[1740105730536,0.04387222,173.32,173.3,5.7684]
[1740105731338,0.04387222,173.32,173.29,5.7687]